bitfinex/quotes_ETHUSD_20241105
["timestamp","ask_amount","ask_price","bid_price","bid_amount"]
[1730793291264,4.08964,2445.2,2445.1,0.32306484]
[1730793292140,5.785696,2445.2,2445.1,0.32306484]
[1730793292534,4.09006,2445.0,2444.5,3.96442272]
[1730793292763,8.18016,2445.0,2444.6,0.8400514]
[1730793292977,4.09006,2445.0,2444.7,0.8400514]
[1730793293177,4.09006,2445.0,2444.8,0.8400514]
[1730793293481,4.09006,2445.0,2444.5,3.96442272]
[1730793293627,4.09006,2445.0,2444.9,0.32305241]
[1730793294270,4.09006,2445.0,2444.6,0.51689718]
[1730793294438,4.09006,2445.0,2444.7,0.32319098]
[1730793294640,4.09006,2445.0,2444.8,0.32319098]
[1730793294846,4.09006,2445.0,2444.6,0.51714314]
[1730793295058,4.09006,2445.0,2444.7,0.32321505]
[1730793295272,4.09006,2445.0,2444.8,0.32321505]
[1730793295437,4.09006,2445.0,2444.5,9.26984999]
[1730793295638,4.09006,2445.0,2444.6,0.32323512]
[1730793295867,4.09006,2445.0,2444.7,0.32323512]
[1730793296067,4.09006,2445.0,2444.5,9.26984999]
[1730793296274,4.09006,2445.0,2444.6,0.32324735]
[1730793296573,4.08983,2445.1,2444.7,0.32324735]
[1730793296778,4.08983,2445.1,2444.5,13.36052999]
[1730793296945,4.08983,2445.1,2444.6,0.32330165]
[1730793297146,4.08983,2445.1,2444.5,13.36052999]
[1730793297147,4.09,2445.0,2444.5,9.26973999]
[1730793297364,8.17976,2445.1,2444.6,0.32329829]
[1730793297574,4.08983,2445.1,2444.5,9.26973999]
[1730793297883,4.08998,2445.0,2444.6,0.32325471]
[1730793298045,4.08998,2445.0,2444.5,9.26973999]
[1730793298242,4.08998,2445.0,2444.6,0.32324115]
[1730793298485,4.08998,2445.0,2444.5,9.26973999]
[1730793298684,4.08998,2445.0,2444.6,0.32320355]
[1730793298889,4.08998,2445.0,2444.5,9.26973999]
[1730793299049,4.08998,2445.0,2444.6,0.32317751]
[1730793299247,4.08983,2445.1,2444.5,9.26973999]
[1730793299459,8.17977,2445.1,2444.6,0.32312014]
[1730793299669,4.09002,2445.0,2444.5,9.26973999]
[1730793299881,4.09002,2445.0,2444.6,0.32312408]
[1730793300095,4.09002,2445.0,2444.5,9.26973999]
[1730793300284,4.09002,2445.0,2444.6,0.32312592]
[1730793300454,4.09002,2445.0,2444.5,9.26973999]
[1730793300655,4.08981,2445.1,2444.6,4.09062]
[1730793300852,4.08981,2445.1,2444.5,9.26973999]
[1730793300853,4.08998,2445.0,2444.5,9.26973999]
[1730793301083,4.08998,2445.0,2444.6,0.32305264]
[1730793301388,4.08998,2445.0,2444.5,9.26973999]
[1730793301552,4.09011,2445.0,2444.5,0.8204]
[1730793301748,4.09023,2444.9,2444.5,0.8204]
[1730793301985,4.09011,2445.0,2444.5,4.9112]
[1730793302150,4.09008,2445.0,2444.5,0.8204]
[1730793302360,4.09016,2444.9,2444.5,0.8204]
[1730793302579,8.18018,2445.0,2444.6,0.32290835]
[1730793302749,8.18018,2445.0,2444.5,0.8204]
[1730793303278,4.09033,2444.8,2444.5,0.8204]
[1730793303798,4.09016,2444.9,2444.5,0.8204]
[1730793305585,8.18015,2445.0,2444.5,0.8204]
[1730793305889,4.09007,2445.0,2444.5,0.8204]
[1730793306196,8.18016,2445.0,2444.5,0.8204]
[1730793306397,4.09007,2445.0,2444.5,0.8204]
[1730793306551,4.09023,2444.9,2444.5,0.8204]
[1730793308355,0.81803,2444.9,2444.3,0.809]
[1730793308667,4.09073,2444.6,2444.3,0.809]
[1730793308874,4.09043,2444.8,2444.3,0.809]
[1730793309083,4.09065,2444.6,2444.3,0.809]
[1730793309268,0.7709,2445.0,2444.3,0.809]
[1730793309475,3.0,2445.2,2444.8,3.14402272]
[1730793309692,4.88777,2445.3,2444.8,7.23431272]
[1730793309895,4.08957,2445.3,2444.8,7.23431272]
[1730793310203,4.08957,2445.3,2444.9,0.7864]
[1730793310703,4.90877,2445.5,2444.9,4.87644]
[1730793310704,3.0,2445.4,2444.9,4.87644]
[1730793310862,3.0,2445.4,2444.9,8.96649]
[1730793311070,3.0,2445.4,2445.0,4.0899]
[1730793311868,3.0,2445.4,2444.9,4.87654]
[1730793311869,7.08941,2445.4,2444.9,4.87654]
[1730793312070,7.08941,2445.4,2445.0,0.32369957]
[1730793312378,3.0,2445.4,2444.9,8.96656]
[1730793312578,4.08898,2445.6,2445.1,3.14402272]
[1730793312782,4.08882,2445.7,2445.2,4.9476945]
[1730793312976,4.08882,2445.7,2445.2,0.7763]
[1730793313164,4.08882,2445.7,2445.2,4.86587]
[1730793313483,4.08882,2445.7,2445.2,5.70418146]
[1730793313699,8.17778,2445.7,2445.2,1.61461146]
[1730793313905,4.08905,2445.6,2445.2,1.61461146]
[1730793314061,4.08905,2445.6,2445.2,0.7763]
[1730793314275,4.08882,2445.7,2445.2,0.7763]
[1730793314596,4.0891,2445.6,2445.2,0.7763]
[1730793314795,4.08882,2445.7,2445.2,0.7763]
[1730793315587,4.08852,2445.9,2445.4,4.08921]
[1730793315910,3.0,2445.8,2445.5,0.7799]
[1730793316497,7.08866,2445.8,2445.5,0.7799]
[1730793317521,4.08838,2446.0,2445.5,1.27500687]
[1730793317812,4.08838,2446.0,2445.5,5.36412687]
[1730793318125,4.1493853,2446.1,2445.6,4.08897]
[1730793318414,4.1493853,2446.1,2445.5,5.36412687]
[1730793318573,4.1493853,2446.1,2445.6,0.85081496]
[1730793318574,4.1493353,2446.1,2445.6,0.85081496]
[1730793318778,4.1493353,2446.1,2445.6,4.93978496]
[1730793319078,4.1493353,2446.1,2445.6,0.85081496]
[1730793319386,4.1493353,2446.1,2445.7,0.7934]
[1730793319793,8.2376153,2446.1,2445.7,0.7934]
[1730793319996,8.2376253,2446.1,2445.7,0.7934]
[1730793320201,4.08845,2446.0,2445.7,0.7934]
[1730793320480,0.0610853,2446.1,2445.7,1.00733218]
[1730793320786,0.0610853,2446.1,2445.7,5.09609218]
[1730793321473,0.0610853,2446.1,2445.7,1.00733218]
[1730793323423,0.0610853,2446.1,2445.8,4.08852]
[1730793323623,0.0610853,2446.1,2446.0,0.7616]
[1730793323795,0.0610853,2446.1,2446.0,1.246612]
[1730793324195,0.0610853,2446.1,2446.0,7.99392272]
[1730793325499,0.0610853,2446.1,2446.0,8.54392272]
[1730793327700,0.0610853,2446.1,2446.0,4.45562272]
[1730793328058,0.0610853,2446.1,2446.0,8.54392272]
[1730793329435,0.0610853,2446.1,2446.0,3.90562272]
[1730793329636,0.0610853,2446.1,2446.0,4.70501699]
[1730793330601,0.0610853,2446.1,2446.0,1.56099427]
[1730793330850,0.0610853,2446.1,2446.0,0.7616]
[1730793334209,0.0610853,2446.1,2446.0,4.8499]
[1730793335128,0.0610853,2446.1,2446.0,0.7616]
[1730793335440,0.0610853,2446.1,2445.9,4.08837]
[1730793335638,0.0610853,2446.1,2446.0,0.7877]
[1730793335936,0.0610853,2446.1,2446.0,1.684145]
[1730793338023,0.0610853,2446.1,2446.0,5.772445]
[1730793338330,0.0610853,2446.1,2446.0,6.322445]
[1730793339038,0.0610853,2446.1,2446.0,9.55821309]
[1730793339236,0.0610853,2446.1,2446.0,13.45957279]
[1730793339454,0.0610853,2446.1,2446.0,10.96151055]
[1730793341864,0.0610853,2446.1,2446.0,14.10553327]
[1730793342170,7.1473253,2447.3,2446.7,4.08705]
[1730793342171,4.1473253,2447.3,2446.7,4.08705]
[1730793342388,4.1473253,2447.3,2446.8,0.87882604]
[1730793342739,4.1473253,2447.3,2447.0,7.23064272]
[1730793342740,0.0610853,2447.3,2447.0,7.23064272]
[1730793343080,0.0610853,2447.3,2447.2,5.4334]
[1730793343364,0.0110853,2447.3,2447.2,5.75631761]
[1730793343562,0.0110853,2447.3,2447.2,6.27235024]
[1730793343866,0.0110853,2447.3,2447.2,7.38272742]
[1730793345585,0.0110853,2447.3,2447.2,0.32291761]
[1730793345793,0.0110853,2447.3,2446.8,4.88403]
[1730793345794,0.0110853,2447.3,2446.9,0.51528145]
[1730793345948,0.0110853,2447.3,2446.8,1.31240592]
[1730793346150,4.0972353,2447.3,2446.9,0.32208446]
[1730793346497,4.0972353,2447.3,2446.6,3.91482272]
[1730793346498,4.0865,2447.1,2446.6,3.91482272]
[1730793346790,4.87197,2447.1,2446.7,0.83739853]
[1730793346990,4.87197,2447.1,2446.6,4.77945953]
[1730793346991,0.7855,2447.1,2446.8,0.32208371]
[1730793347204,4.08667,2447.0,2446.3,4.08769]
[1730793347505,0.7855,2447.1,2446.5,4.08737]
[1730793347721,0.7855,2447.1,2446.6,5.2933155]
[1730793347857,0.7855,2447.1,2446.7,0.3221255]
[1730793348063,0.7855,2447.1,2446.6,4.97117616]
[1730793348381,0.7855,2447.1,2446.7,0.32213051]
[1730793348563,0.7855,2447.1,2446.8,0.32213051]
[1730793348765,0.7855,2447.1,2446.6,0.88397616]
[1730793348961,4.08673,2447.0,2446.7,0.32221717]
[1730793349168,4.08673,2447.0,2446.3,4.08771]
[1730793349169,8.17351,2447.0,2446.3,4.08771]
[1730793349461,8.17351,2447.0,2446.4,0.83807066]
[1730793349667,4.08723,2446.7,2446.5,0.32233233]
[1730793349963,4.08723,2446.7,2446.0,4.08817]
[1730793349964,4.08757,2446.5,2446.3,0.5158267]
[1730793350166,4.08772,2446.4,2446.1,0.51595705]
[1730793350367,4.0878,2446.3,2446.2,0.32255408]
[1730793350686,4.0878,2446.3,2445.8,0.51611055]
[1730793350687,4.8906,2446.3,2445.8,0.51611055]
[1730793350860,0.8028,2446.3,2445.9,0.92049516]
[1730793351060,4.08805,2446.2,2446.0,0.32262534]
[1730793351257,4.08805,2446.2,2445.7,0.51628018]
[1730793351462,0.8028,2446.3,2445.8,0.83894676]
[1730793351697,0.8028,2446.3,2445.9,0.83894676]
[1730793351996,4.8906,2446.3,2446.0,0.32266658]
[1730793352199,4.8906,2446.3,2445.6,4.08882]
[1730793352371,4.08798,2446.2,2445.7,0.72328427]
[1730793353062,4.08798,2446.2,2445.5,0.55]
[1730793353386,4.0883,2446.1,2445.6,0.83920429]
[1730793353586,4.0883,2446.1,2445.7,0.83920429]
[1730793353887,4.0883,2446.1,2445.8,0.83933431]
[1730793354091,0.8028,2446.3,2445.9,0.32276834]
[1730793354407,0.8028,2446.3,2446.0,0.32280093]
[1730793354573,0.8028,2446.3,2445.9,0.51645674]
[1730793354900,0.8028,2446.3,2446.0,0.32277021]
[1730793355101,0.8028,2446.3,2446.1,0.32277021]
[1730793355308,0.8028,2446.3,2445.9,0.51641328]
[1730793355516,4.89067,2446.3,2446.0,0.3227527]
[1730793355808,4.08798,2446.2,2446.1,0.3227527]
[1730793356007,1.70064,2446.3,2445.8,0.51566383]
[1730793356008,4.89061,2446.3,2445.8,0.51566383]
[1730793356309,4.89061,2446.3,2445.7,0.55]
[1730793356310,8.97849,2446.3,2445.9,0.3227888]
[1730793356601,4.89061,2446.3,2446.0,0.3227888]
[1730793356809,4.89061,2446.3,2446.1,0.3227888]
[1730793356994,4.89061,2446.3,2445.7,4.63869]
[1730793357300,4.89061,2446.3,2445.8,5.28415343]
[1730793357507,0.8028,2446.3,2445.9,0.32278743]
[1730793357709,8.94083,2446.5,2446.0,0.32278743]
[1730793357880,4.08788,2446.3,2445.9,0.7947]
[1730793358087,4.08788,2446.3,2446.0,0.32275581]
[1730793358290,4.08788,2446.3,2445.9,0.7947]
[1730793358617,4.08788,2446.3,2446.0,0.32274987]
[1730793358774,4.08788,2446.3,2445.9,0.7947]
[1730793359103,4.08788,2446.3,2446.0,0.32275893]
[1730793359319,4.0875,2446.5,2445.9,4.88306]
[1730793359527,4.08774,2446.4,2445.9,1.746875]
[1730793359693,0.7956,2446.3,2446.0,0.32269464]
[1730793359877,0.7956,2446.3,2446.1,0.32269464]
[1730793360080,0.7956,2446.3,2445.9,0.55]
[1730793360281,0.7956,2446.3,2446.0,0.32271385]
[1730793360534,0.7956,2446.3,2445.9,0.55]
[1730793360822,0.7956,2446.3,2446.0,0.32271643]
[1730793360979,0.7956,2446.3,2445.9,0.55]
[1730793361179,0.7956,2446.3,2446.0,0.32270907]
[1730793361411,4.88342,2446.3,2445.7,5.52837025]
[1730793361614,0.7956,2446.3,2445.8,4.49300546]
[1730793361877,0.7956,2446.3,2445.9,0.32270845]
[1730793362083,4.08638,2447.2,2446.6,4.08727]
[1730793362284,0.0110853,2447.3,2446.7,1.14103096]
[1730793362285,4.0973453,2447.3,2446.7,1.14103096]
[1730793362491,4.58820983,2447.3,2446.7,0.8186]
[1730793362785,4.08631,2447.2,2446.7,4.90572]
[1730793362979,4.08631,2447.2,2446.7,0.8186]
[1730793362980,4.08646,2447.1,2446.7,0.8186]
[1730793364619,4.08631,2447.2,2446.7,0.8186]
[1730793364784,4.08648,2447.1,2446.7,0.8186]
[1730793365409,8.17273,2447.2,2446.7,0.8186]
[1730793365631,4.08631,2447.2,2446.7,0.8186]
[1730793365798,4.0865,2447.1,2446.7,0.8186]
[1730793366225,4.95374298,2447.2,2446.7,0.8186]
[1730793366430,4.08648,2447.1,2446.7,0.8186]
[1730793366630,4.08646,2447.1,2446.7,0.8186]
[1730793366786,0.50194983,2447.3,2446.3,3.14402272]
[1730793366787,4.08701,2446.8,2446.3,0.51591623]
[1730793367006,4.08701,2446.8,2446.1,1.34101623]
[1730793367331,4.08701,2446.8,2446.3,4.08771]
[1730793367533,0.792,2447.0,2446.1,4.91312]
[1730793367734,4.08728,2446.7,2446.2,0.32256212]
[1730793367934,4.08732,2446.6,2446.3,0.32256212]
[1730793368157,4.08732,2446.6,2446.1,0.8251]
[1730793368443,4.08757,2446.5,2446.1,0.8251]
[1730793368745,4.08791,2446.3,2446.0,0.3226341]
[1730793368907,4.08791,2446.3,2445.8,0.32265713]
[1730793369245,4.08791,2446.3,2445.9,0.32265713]
[1730793369409,4.08788,2446.3,2445.8,4.08862]
[1730793370335,4.08788,2446.3,2445.8,5.27075043]
[1730793370851,8.17582,2446.3,2445.8,5.27075043]
[1730793371028,4.08799,2446.2,2445.8,1.18213043]
[1730793371227,4.08799,2446.2,2445.8,1.50472819]
[1730793371648,4.08788,2446.3,2445.8,1.50472819]
[1730793371649,4.08834,2446.0,2445.8,0.32259776]
[1730793371817,4.88174,2446.0,2445.6,0.32265258]
[1730793372015,4.08849,2445.9,2445.6,0.32265258]
[1730793372236,4.08849,2445.9,2445.5,1.11394431]
[1730793372411,4.0885,2445.9,2445.5,2.39480149]
[1730793372614,0.7934,2446.0,2445.5,6.48392149]
[1730793372822,0.7934,2446.0,2445.6,0.32264431]
[1730793373338,4.88171,2446.0,2445.6,0.32264431]
[1730793373500,0.7934,2446.0,2445.6,0.4044144]
[1730793373705,0.8132,2446.2,2445.7,4.08868]
[1730793373934,0.8132,2446.2,2445.7,7.23270272]
[1730793374311,0.8132,2446.2,2445.8,4.08855]
[1730793374912,0.8132,2446.2,2445.9,4.08839]
[1730793375326,4.08774,2446.4,2445.9,4.08835]
[1730793376250,4.08774,2446.4,2445.9,8.17673]
[1730793377111,4.08774,2446.4,2446.0,0.32313215]
[1730793377326,4.08774,2446.4,2445.9,8.17673]
[1730793377535,4.08774,2446.4,2446.0,0.32319396]
[1730793377739,5.0250692,2446.4,2445.9,4.08835]
[1730793378047,5.0250692,2446.4,2446.0,0.32320261]
[1730793378279,5.0250692,2446.4,2445.9,4.17011037]
[1730793378483,5.0250692,2446.4,2446.0,0.32327152]
[1730793378782,4.08791,2446.3,2445.8,4.6057408]
[1730793378939,0.7894,2446.5,2446.0,4.0882]
[1730793379139,4.87695,2446.5,2446.0,4.0882]
[1730793379677,0.7894,2446.5,2445.8,4.0885]
[1730793379868,4.08789,2446.3,2445.9,0.32331867]
[1730793380067,4.08789,2446.3,2445.8,4.60579972]
[1730793380284,4.08673,2447.0,2446.5,4.08737]
[1730793380645,8.17346,2447.0,2446.5,4.08737]
[1730793380987,4.08673,2447.0,2446.5,8.17475]
[1730793381178,4.08647,2447.1,2446.5,4.08737]
[1730793381387,4.08675,2447.0,2446.5,4.08737]
[1730793381888,4.08683,2446.9,2446.5,4.08737]
[1730793382188,4.08664,2447.0,2446.5,4.08737]
[1730793382346,4.08664,2447.0,2446.5,8.17476]
[1730793382974,4.08664,2447.0,2446.5,4.08737]
[1730793383849,8.17343,2447.0,2446.5,4.08737]
[1730793384072,4.08682,2446.9,2446.4,4.08762]
[1730793384289,7.08647,2447.1,2446.7,0.7891]
[1730793384492,3.0,2447.1,2446.7,4.87613]
[1730793385353,4.08632,2447.2,2446.7,4.87613]
[1730793385556,4.08632,2447.2,2446.8,4.0869]
[1730793385764,4.08632,2447.2,2446.7,4.87613]
[1730793385994,4.0972253,2447.3,2446.8,4.08687]
[1730793386199,4.0972253,2447.3,2446.4,0.51660543]
[1730793386200,0.7741,2447.2,2446.4,0.7898]
[1730793386368,4.08656,2447.1,2446.6,4.0872]
[1730793386699,0.7741,2447.2,2446.7,7.55385326]
[1730793386853,4.8605,2447.2,2446.7,4.84238533]
[1730793387193,4.08655,2447.1,2446.7,0.75538533]
[1730793387552,0.7741,2447.2,2446.8,4.08696]
[1730793388384,4.86042,2447.2,2446.7,4.84251533]
[1730793388901,4.08686,2446.9,2446.4,8.02144272]
[1730793389054,4.08706,2446.8,2446.5,0.32280276]
[1730793389252,4.08702,2446.8,2446.4,0.7898]
[1730793389768,4.08705,2446.8,2446.4,0.7898]
[1730793389971,4.0868,2446.9,2446.4,4.87743]
[1730793390292,4.08698,2446.8,2446.4,0.7898]
[1730793390501,0.7741,2447.2,2446.4,0.7898]
[1730793390798,4.08639,2447.2,2446.4,4.08753]
[1730793390982,4.0866,2447.1,2446.5,7.99634272]
[1730793391184,4.83804,2447.2,2446.6,4.0873]
[1730793391383,4.83804,2447.2,2446.7,4.08705]
[1730793391560,0.7516,2447.2,2446.8,4.08686]
[1730793391760,3.7516,2447.2,2446.8,4.08686]
[1730793392192,0.0110853,2447.3,2446.9,4.8518]
[1730793392692,0.0110853,2447.3,2446.9,0.765]
[1730793392894,4.0863,2447.2,2446.9,0.765]
[1730793393590,4.0863,2447.2,2446.7,4.90831]
[1730793393790,8.17276,2447.2,2446.7,4.90831]
[1730793393992,0.7531,2447.1,2446.5,4.87649]
[1730793394190,8.17338,2447.0,2446.5,5.772907]
[1730793394403,4.08692,2446.9,2446.3,4.0877]
[1730793394558,4.087,2446.8,2446.4,0.32287288]
[1730793394763,4.087,2446.8,2446.3,8.96451]
[1730793394964,4.087,2446.8,2446.4,0.3230298]
[1730793395164,4.087,2446.8,2446.3,8.96451]
[1730793395397,4.087,2446.8,2446.4,0.3230677]
[1730793395568,4.08723,2446.7,2446.3,0.7891]
[1730793395772,4.08732,2446.6,2446.1,0.7891]
[1730793395961,4.08759,2446.5,2446.2,0.32315249]
[1730793396163,4.08754,2446.5,2445.8,0.7891]
[1730793396384,4.08773,2446.4,2445.9,5.5017597]
[1730793396593,4.08773,2446.4,2446.0,0.32322582]
[1730793396795,4.08754,2446.5,2445.9,4.66136594]
[1730793396999,4.08781,2446.3,2446.0,0.32325153]
[1730793397207,4.08781,2446.3,2445.9,4.66136594]
[1730793397510,8.17574,2446.3,2446.0,0.32324542]
[1730793397805,4.84081,2446.3,2445.8,5.39489794]
[1730793398009,4.84081,2446.3,2445.9,0.32321903]
[1730793398166,4.0883,2446.1,2446.0,0.32321903]
[1730793398368,4.0883,2446.1,2445.8,0.7891]
[1730793398801,3.0,2446.1,2445.5,0.7508]
[1730793398985,4.08862,2445.9,2445.5,0.7508]
[1730793399186,4.08866,2445.8,2445.5,0.7508]
[1730793400212,4.0883,2446.0,2445.5,0.7508]
[1730793400503,3.70883,2446.0,2445.3,0.7508]
[1730793400665,4.08879,2445.8,2445.3,0.7508]
[1730793401405,4.08879,2445.8,2445.3,4.84026]
[1730793401793,4.08847,2445.9,2445.3,0.7508]
[1730793401997,4.08866,2445.8,2445.3,4.84022]
[1730793402872,4.08866,2445.8,2445.3,0.7508]
[1730793403311,4.08866,2445.8,2445.3,4.84025]
[1730793404102,7.6435,2445.9,2445.4,4.08921]
[1730793404404,7.6435,2445.9,2445.3,4.84025]
[1730793404601,7.6435,2445.9,2445.3,4.84017]
[1730793405326,7.6435,2445.9,2445.4,4.0893]
[1730793405609,7.6435,2445.9,2445.3,4.84017]
[1730793405610,4.08865,2445.8,2445.3,4.84017]
[1730793406310,8.17745,2445.8,2445.3,4.84017]
[1730793406814,4.08865,2445.8,2445.3,4.84017]
[1730793406978,8.17739,2445.8,2445.3,4.84017]
[1730793407177,4.08865,2445.8,2445.3,4.84017]
[1730793407410,8.17742,2445.8,2445.3,4.84017]
[1730793407620,4.08865,2445.8,2445.3,0.7508]
[1730793407789,4.08888,2445.7,2445.3,0.7508]
[1730793408114,4.65970266,2445.8,2445.3,0.7508]
[1730793408321,4.65970266,2445.8,2445.3,4.84027]
[1730793408691,4.08881,2445.7,2445.3,0.7508]
[1730793409332,4.91321,2445.7,2445.2,4.08956]
[1730793409623,4.65970266,2445.8,2444.7,0.7859]
[1730793409624,0.8281,2445.6,2444.7,0.7859]
[1730793409822,4.08965,2445.2,2444.7,5.19898096]
[1730793409977,4.08947,2445.4,2444.8,4.09029]
[1730793410325,4.08958,2445.3,2444.8,4.09029]
[1730793410619,4.08977,2445.2,2444.7,8.02034272]
[1730793410914,4.08966,2445.2,2444.7,8.02036272]
[1730793411912,4.08941,2445.4,2444.8,4.09028]
[1730793412127,4.08964,2445.2,2444.7,3.92992272]
[1730793412413,4.08964,2445.2,2444.7,8.02039272]
[1730793412979,4.881181,2445.4,2444.8,4.09022]
[1730793413577,4.08955,2445.3,2444.7,8.02030272]
[1730793414594,4.08974,2445.2,2444.7,8.02030272]
[1730793415493,9.0765361,2445.2,2444.7,0.7859]
[1730793415737,4.08989,2445.1,2444.7,0.7859]
[1730793415895,0.791751,2445.4,2443.7,1.33302109]
[1730793415896,0.8269,2445.0,2443.7,1.33302109]
[1730793416131,0.8269,2445.0,2444.1,4.09138]
[1730793416132,4.09014,2444.9,2444.1,4.09138]
[1730793416433,4.09056,2444.7,2444.2,0.7953]
[1730793416783,4.09064,2444.6,2444.2,0.7953]
[1730793419498,4.09065,2444.6,2444.2,0.7953]
[1730793422080,4.09056,2444.7,2444.2,0.7953]
[1730793422325,4.09089,2444.5,2444.2,0.7953]
[1730793423009,4.09061,2444.7,2444.2,0.7953]
[1730793423386,8.18122,2444.7,2444.2,0.7953]
[1730793423815,4.09069,2444.6,2444.2,0.7953]
[1730793424828,4.09085,2444.5,2444.2,0.7953]
[1730793425204,4.09085,2444.5,2443.6,0.05]
[1730793425205,8.18309,2444.1,2443.6,0.05]
[1730793425391,4.09148,2444.1,2443.7,0.32288669]
[1730793425595,4.09148,2444.1,2443.6,0.05]
[1730793425830,4.09148,2444.1,2443.7,0.32285889]
[1730793426001,4.09148,2444.1,2443.6,0.05]
[1730793426207,0.01,2444.7,2444.1,4.09144]
[1730793426208,4.09056,2444.7,2444.1,4.09144]
[1730793426395,3.0,2444.6,2444.2,4.09125]
[1730793427235,3.0,2444.6,2444.3,0.32279653]
[1730793427435,3.0,2444.6,2444.2,4.09125]
[1730793427634,3.0,2444.6,2444.3,0.32276701]
[1730793427931,7.85432,2444.8,2444.3,4.09115]
[1730793428130,7.85432,2444.8,2444.3,4.87255]
[1730793428737,7.85432,2444.8,2444.3,0.7814]
[1730793429492,3.0,2444.6,2444.3,0.7814]
[1730793429806,7.09073,2444.6,2444.3,0.7814]
[1730793430593,3.0,2444.7,2444.3,0.7814]
[1730793430790,7.09049,2444.7,2444.3,1.34706541]
[1730793432735,7.09049,2444.7,2444.4,0.32294165]
[1730793432910,7.09049,2444.7,2444.3,1.34706541]
[1730793433104,7.09049,2444.7,2444.4,0.32294894]
[1730793433310,7.09049,2444.7,2444.3,1.34706541]
[1730793433503,4.09015,2444.9,2444.4,5.11792163]
[1730793433705,3.0,2444.9,2444.5,0.32298541]
[1730793433905,4.08975,2445.2,2444.7,4.09045]
[1730793434107,4.08948,2445.3,2444.7,11.32478272]
[1730793434335,4.08948,2445.3,2444.8,1.53304705]
[1730793434557,4.08948,2445.3,2444.9,0.32292878]
[1730793434757,4.08947,2445.3,2444.8,1.21011827]
[1730793434957,4.08947,2445.3,2444.9,0.32295062]
[1730793435161,4.08947,2445.3,2444.8,1.21011827]
[1730793435470,7.08964,2445.2,2444.9,0.3230752]
[1730793435632,4.08964,2445.2,2444.6,4.86695]
[1730793435959,4.08964,2445.2,2444.7,0.83997233]
[1730793436174,4.08964,2445.2,2444.8,0.84012034]
[1730793436338,4.08964,2445.2,2444.9,0.32306374]
[1730793436664,4.08964,2445.2,2445.0,0.32306374]
[1730793436859,4.08964,2445.2,2444.7,4.09047]
[1730793437073,4.08964,2445.2,2444.8,0.84030688]
[1730793437264,4.08964,2445.2,2444.9,0.32319241]
[1730793437563,4.08964,2445.2,2445.0,0.32319241]
[1730793437729,4.08964,2445.2,2444.7,4.986222]
[1730793437930,4.08964,2445.2,2444.8,0.84071081]
[1730793438165,4.08964,2445.2,2444.9,0.32334848]
[1730793438532,4.08964,2445.2,2445.0,0.3234761]
[1730793439442,4.08947,2445.3,2445.1,0.3234761]
[1730793439650,8.17903,2445.3,2445.1,0.3234761]
[1730793440056,4.08922,2445.5,2444.8,0.88689571]
[1730793440369,4.08832,2446.0,2445.4,4.08922]
[1730793440529,0.7771,2446.1,2445.6,4.08882]
[1730793440734,4.0883,2446.0,2445.7,1.64647717]
[1730793440925,4.86526,2446.1,2445.8,0.32360406]
[1730793441149,4.08847,2445.9,2445.7,0.8051]
[1730793441468,4.08847,2445.9,2445.8,0.32317371]
[1730793442130,4.983843,2445.9,2445.8,0.32317371]
[1730793442384,4.983843,2445.9,2445.1,0.53952739]
[1730793442385,4.08931,2445.4,2445.3,0.51697963]
[1730793442668,4.08931,2445.4,2445.0,0.7555]
[1730793442868,4.08954,2445.3,2445.1,0.32327146]
[1730793443073,4.08954,2445.3,2445.2,0.32327146]
[1730793444666,4.08931,2445.4,2445.2,0.32327146]
[1730793444843,4.08931,2445.4,2445.0,0.7555]
[1730793444844,4.08947,2445.3,2445.0,0.7555]
[1730793445039,4.08947,2445.3,2445.1,0.32324655]
[1730793445040,4.08967,2445.2,2445.1,0.32324655]
[1730793445254,4.08967,2445.2,2444.8,0.7856]
[1730793445434,4.08983,2445.1,2444.9,0.32333272]
[1730793445743,4.08983,2445.1,2444.6,4.09054]
[1730793445744,4.09006,2445.0,2444.6,0.7856]
[1730793445949,4.08983,2445.1,2444.7,0.84074661]
[1730793446274,4.86278,2445.3,2444.8,0.32336154]
[1730793446463,4.08964,2445.2,2444.9,0.32336154]
[1730793446658,4.08964,2445.2,2444.7,4.09038]
[1730793446834,4.08958,2445.3,2444.8,4.93092756]
[1730793447047,4.08958,2445.3,2444.9,0.32332105]
[1730793447249,4.08957,2445.3,2445.0,0.32332105]
[1730793447501,4.08957,2445.3,2444.8,4.0903]
[1730793447782,4.08957,2445.3,2444.9,0.32329583]
[1730793447954,4.08957,2445.3,2445.0,0.32329583]
[1730793448292,4.08957,2445.3,2444.8,4.0903]
[1730793448485,3.63001342,2445.4,2444.9,0.32328109]
[1730793448708,3.63001342,2445.4,2444.8,4.0903]
[1730793448844,4.08957,2445.3,2444.9,0.32329964]
[1730793449050,4.08957,2445.3,2445.0,0.32329964]
[1730793449287,4.08957,2445.3,2444.8,4.0902]
[1730793449493,4.08957,2445.3,2444.9,0.32330966]
[1730793449691,7.71932342,2445.4,2445.0,1.15639926]
[1730793449899,7.71932342,2445.4,2445.0,0.8331]
[1730793450386,4.08949,2445.3,2445.0,0.8331]
[1730793452067,7.08931,2445.4,2445.0,0.8331]
[1730793452767,4.08925,2445.5,2445.0,5.824318]
[1730793453186,8.17849,2445.5,2445.0,5.824318]
[1730793453387,4.08924,2445.5,2445.0,5.824318]
[1730793453904,4.08934,2445.4,2445.0,1.734428]
[1730793454282,4.08924,2445.5,2445.0,1.734428]
[1730793454661,4.08948,2445.3,2445.0,0.8331]
[1730793454892,4.08931,2445.4,2445.0,0.8331]
[1730793455460,4.08924,2445.5,2445.0,0.8331]
[1730793455662,4.08924,2445.5,2445.0,4.92307]
[1730793456094,8.17848,2445.5,2445.0,4.92307]
[1730793456462,4.08931,2445.4,2445.0,0.8331]
[1730793457686,4.08931,2445.4,2445.0,1.37723302]
[1730793459324,4.08931,2445.4,2445.1,0.32389591]